bitfinex/quotes_ETHUSD_20251224
["timestamp","ask_amount","ask_price","bid_price","bid_amount"]
[1766572880741,0.9814,2933.0,2932.7,3.44390679]
[1766572881773,1.17224855,2933.0,2932.7,0.03409827]
[1766572882072,1.17224855,2933.0,2932.6,0.001]
[1766572882371,0.9814,2932.8,2932.4,3.41012079]
[1766572882571,0.9814,2932.8,2932.5,3.41005543]
[1766572882977,1.02401702,2933.1,2932.7,3.40972143]
[1766572883274,0.9814,2933.1,2932.6,3.42694339]
[1766572883843,0.9814,2933.1,2932.6,3.42794339]
[1766572885459,0.04261847,2933.0,2932.6,0.01806366]
[1766572885861,0.9814,2932.9,2932.6,0.001]
[1766572886187,0.9814,2932.9,2932.4,3.41012016]
[1766572886491,0.9814,2932.9,2932.5,0.01706424]
[1766572888191,0.9814,2932.9,2932.5,3.42703068]
[1766572889191,0.9814,2932.9,2932.5,0.01706424]
[1766572889664,0.9814,2932.9,2932.3,0.001]
[1766572890299,0.9814,2932.9,2932.3,3.41129226]
[1766572890474,0.9814,2932.9,2932.3,6.82158452]
[1766572890772,0.9814,2932.9,2932.3,7.50599156]
[1766572890965,0.9814,2932.9,2932.5,0.001]
[1766572892596,0.04262138,2932.8,2932.5,0.001]
[1766572895492,0.9814,2932.9,2932.5,0.001]
[1766572896694,0.9814,2932.9,2932.5,3.41105967]
[1766572897086,0.04461847,2933.0,2932.5,3.42812275]
[1766572902200,0.98131557,2933.2,2932.5,4.1825401]
[1766572902399,1.82147227,2933.5,2932.6,0.02048586]
[1766572902572,0.98131266,2933.4,2932.7,0.01705378]
[1766572903914,0.98131266,2933.4,2932.6,0.02048586]
[1766572904203,0.9387,2933.3,2932.5,0.001]
[1766572904408,0.9387,2933.1,2932.5,0.001]
[1766572904612,0.9387,2932.9,2932.5,0.001]
[1766572904770,0.04262138,2932.8,2932.5,0.001]
[1766572904968,0.9387,2932.7,2932.5,0.001]
[1766572905271,0.9387,2932.7,2932.4,3.41016853]
[1766572905471,0.9387,2932.7,2932.5,3.4100451]
[1766572905710,0.9387,2932.7,2932.4,3.41012599]
[1766572906413,0.9387,2932.7,2932.3,3.43072239]
[1766572906581,0.9387,2932.7,2932.3,6.84101465]
[1766572906905,0.04261847,2933.0,2932.3,7.75841612]
[1766572907093,0.9387,2932.9,2932.3,7.75841612]
[1766572907484,0.9387,2932.9,2932.5,0.001]
[1766572909405,0.9387,2933.3,2932.6,0.1012]
[1766572909711,0.9387,2933.3,2932.8,0.1012]
[1766572909915,0.96428375,2933.3,2932.8,0.1012]
[1766572910416,0.9387,2933.3,2932.8,0.1012]
[1766572910981,0.9387,2933.3,2932.8,3.40971085]
[1766572913099,0.9387,2933.3,2932.7,3.40979543]
[1766572913417,0.98131557,2933.2,2932.7,3.40979543]
[1766572914134,0.98131557,2933.2,2932.6,3.40988827]
[1766572915211,0.98131557,2933.2,2932.5,6.82009562]
[1766572915911,0.98131557,2933.2,2932.6,0.02556147]
[1766572916580,0.98331557,2933.2,2932.6,0.02556147]
[1766572917511,0.9407,2933.2,2932.7,3.40982712]
[1766572917716,0.9407,2933.2,2932.8,0.02555769]
[1766572918189,0.002,2933.2,2932.8,0.02555769]
[1766572918389,0.9407,2933.4,2932.8,0.04604355]
[1766572919295,0.98331266,2933.4,2932.8,0.04604355]
[1766572919497,0.98331266,2933.4,2932.9,0.68656978]
[1766572919708,0.98331266,2933.4,2932.9,4.09607654]
[1766572921423,0.9407,2933.4,2932.9,4.09607654]
[1766572922333,0.9407,2933.4,2932.9,3.40950676]
[1766572923836,0.9407,2933.4,2932.8,3.43013952]
[1766572924422,1.01111412,2933.3,2932.8,3.43013952]
[1766572925329,1.01111412,2933.3,2932.8,3.40965366]
[1766572926041,1.01111412,2933.3,2932.7,3.40982712]
[1766572926611,1.01111412,2933.3,2932.6,0.6867143]
[1766572926835,1.01111412,2933.3,2932.6,3.40991438]
[1766572927210,0.9685,2933.1,2932.6,3.40991438]
[1766572927528,1.01111702,2933.1,2932.6,3.40991438]
[1766572928740,1.01111702,2933.1,2932.5,6.82108352]
[1766572930108,1.01111702,2933.1,2932.5,3.41102385]
[1766572930307,0.04261847,2933.0,2932.5,0.001]
[1766572930515,0.9705,2933.4,2932.6,0.02048586]
[1766572930726,0.01706355,2933.3,2932.8,0.02048586]
[1766572930924,0.01706355,2933.3,2932.8,3.43015191]
[1766572931434,0.98556355,2933.3,2932.8,3.43015191]
[1766572932645,0.98556355,2933.3,2932.8,4.11620749]
[1766572933137,0.98756355,2933.3,2932.9,3.44367019]
[1766572933337,0.002,2933.4,2932.9,3.44367019]
[1766572934132,0.002,2933.4,2933.0,0.02048586]
[1766572934624,0.9685,2933.6,2933.0,0.05458064]
[1766572934813,0.9685,2933.6,2933.0,0.81260973]
[1766572936733,0.9685,2933.6,2933.0,4.16750703]
[1766572940243,0.9685,2933.6,2933.1,0.03409362]
[1766572941546,0.9685,2933.6,2933.1,3.44337124]
[1766572941845,0.9685,2933.9,2933.1,6.8732192]
[1766572942148,1.8615,2933.9,2933.2,0.76312483]
[1766572943318,1.8615,2933.9,2933.3,0.03409129]
[1766572943737,1.8615,2933.9,2933.3,3.44319704]
[1766572946855,0.002,2934.0,2933.3,3.4636829]
[1766572947424,0.9705,2934.0,2933.3,3.4636829]
[1766572947625,0.9705,2934.0,2933.3,4.22933548]
[1766572947963,0.9705,2934.0,2933.3,7.63846512]
[1766572948128,0.9705,2934.0,2933.3,7.60437383]
[1766572948328,0.9705,2934.0,2933.4,0.03409013]
[1766572951356,0.9705,2934.0,2933.4,3.44306027]
[1766572951933,0.9705,2934.0,2933.3,4.19524419]
[1766572951934,0.9705,2934.0,2933.3,3.42955029]
[1766572952132,0.9961,2933.9,2933.3,3.40906443]
[1766572952361,0.9961,2933.9,2933.1,3.40931971]
[1766572952540,0.9961,2933.9,2933.3,3.40912086]
[1766572952739,0.9961,2933.9,2933.2,3.40918589]
[1766572953325,0.9961,2933.9,2933.1,3.40931971]
[1766572953525,0.9961,2933.8,2933.1,3.40931971]
[1766572953759,0.9961,2933.6,2933.0,3.41041387]
[1766572955432,0.9961,2933.6,2932.8,3.43018508]
[1766572955433,0.9961,2933.6,2932.6,3.831]
[1766572955632,0.9961,2933.6,2932.6,7.24091237]
[1766572955633,0.9203,2933.5,2932.6,7.24091237]
[1766572955959,0.9203,2933.3,2932.6,7.24091237]
[1766572956132,0.9203,2933.1,2932.6,7.24091237]
[1766572956730,0.9203,2933.1,2932.6,0.001]
[1766572957046,0.9203,2933.1,2932.6,3.41092576]
[1766572957546,0.9203,2933.1,2932.6,0.001]
[1766572957755,1.10163,2933.1,2932.6,0.001]
[1766572960153,1.8133,2933.0,2932.6,0.001]
[1766572960565,0.893,2933.0,2932.6,0.001]
[1766572960770,0.9203,2932.9,2932.6,0.001]
[1766572962473,0.9203,2932.9,2932.6,3.41094339]
[1766572963662,0.9203,2932.9,2932.5,0.03510059]
[1766572963834,0.9203,2932.9,2932.5,0.001]
[1766572964237,1.10163,2932.9,2932.5,0.001]
[1766572971494,0.002,2933.6,2932.6,0.93758586]
[1766572971646,0.002,2933.6,2932.9,0.9171]
[1766572972043,0.002,2933.6,2933.0,0.02048586]
[1766572972239,0.002,2933.6,2933.1,0.9171]
[1766572972668,0.002,2933.6,2932.9,0.9171]
[1766572972669,0.9203,2933.5,2932.9,0.9171]
[1766572972867,0.9203,2933.3,2932.7,0.9171]
[1766572973581,0.9203,2933.3,2932.8,3.40971085]
[1766572974075,0.893,2934.1,2933.4,0.9171]
[1766572974276,0.893,2934.1,2933.6,0.9171]
[1766572974584,1e-08,2934.4,2933.8,0.9171]
[1766572974951,0.895,2934.5,2933.8,0.9171]
[1766572975659,0.002,2934.5,2934.1,0.9171]
[1766572976880,0.002,2934.8,2934.1,0.97166786]
[1766572977083,0.002,2934.8,2934.2,0.9171]
[1766572977753,0.002,2934.8,2934.1,0.034082]
[1766572977956,4.48076224,2934.6,2933.9,3.40836675]
[1766572978177,0.034082,2934.5,2933.9,3.40834939]
[1766572978380,0.034082,2934.5,2933.9,3.40843245]
[1766572979069,0.45148442,2934.4,2933.9,3.40843245]
[1766572979264,0.034082,2934.3,2933.9,3.40843245]
[1766572979464,4.51484424,2934.3,2933.6,3.40872814]
[1766572980369,0.034082,2934.3,2933.6,3.40872814]
[1766572980677,0.034082,2934.5,2933.6,6.81750915]
[1766572980853,0.79225328,2934.4,2933.6,4.32582814]
[1766572981152,0.034082,2934.3,2933.6,4.32582814]
[1766572981559,0.034082,2934.3,2933.6,0.9171]
[1766572981753,7.92289808,2934.3,2933.6,0.9171]
[1766572981952,7.92289808,2934.3,2933.4,3.40895284]
[1766572981953,7.88881608,2934.3,2933.4,3.40895284]
[1766572982177,1.24297428,2934.2,2933.4,3.40895284]
[1766572982380,1.24297428,2934.2,2933.3,4.38652765]
[1766572982381,1.24297428,2934.2,2933.5,3.40885045]
[1766572982688,1.24297428,2934.2,2933.5,3.40882069]
[1766572982862,1.24297428,2934.2,2933.4,0.9774]
[1766572982863,0.002,2934.5,2933.8,0.9774]
[1766572983066,0.002,2934.5,2934.2,0.9774]
[1766572983883,0.002,2934.9,2934.4,0.9774]
[1766572985870,0.002,2934.9,2934.5,3.40773555]
[1766572986757,0.002,2934.9,2934.5,7.7928711]
[1766572987099,0.002,2934.9,2934.6,0.9774]
[1766572987761,0.002,2934.9,2934.5,3.40773555]
[1766572987960,0.002,2934.9,2934.5,4.38513555]
[1766572988358,4.48276224,2934.8,2933.9,0.9774]
[1766572988661,4.48276224,2934.8,2933.9,3.40835622]
[1766572988662,4.48076224,2934.5,2933.9,3.40835622]
[1766572989061,1.34047622,2934.7,2934.0,3.40831487]
[1766572989279,1.34047622,2934.7,2934.0,4.38571487]
[1766572989473,1.34047622,2934.7,2934.1,3.4081772]
[1766572989680,0.892,2934.6,2934.1,0.9774]
[1766572990355,0.892,2934.6,2934.1,4.3855965]
[1766572991163,0.892,2934.6,2933.6,0.9774]
[1766572991578,0.892,2934.6,2933.9,4.38577675]
[1766572995558,7.89018277,2934.8,2933.9,4.38577675]
[1766572995762,7.89018277,2934.8,2934.0,0.9774]
[1766572995763,1.68121828,2934.7,2934.0,0.9774]
[1766572996383,1.68121828,2934.7,2934.1,0.9774]
[1766572998099,5.08873434,2934.7,2934.1,0.9774]
[1766572998303,5.08873434,2934.7,2933.9,3.40933773]
[1766572998498,0.95714966,2934.6,2933.9,4.38673773]
[1766572999197,0.95714966,2934.6,2933.9,0.9784]
[1766573001001,0.95714966,2934.6,2934.0,3.40831629]
[1766573002299,0.95714966,2934.6,2934.0,3.40931629]
[1766573002798,0.95714966,2934.6,2934.0,4.38671629]
[1766573004098,0.892,2934.5,2934.0,4.38671629]
[1766573004286,0.892,2934.5,2934.0,0.001]
[1766573004493,1.41766585,2934.5,2934.0,0.001]
[1766573005385,0.892,2934.4,2934.0,0.001]
[1766573005891,0.892,2934.4,2934.0,0.9784]
[1766573006098,0.892,2934.4,2934.0,4.38671478]
[1766573006293,0.892,2934.4,2934.0,0.9784]
[1766573007695,0.892,2934.4,2934.0,0.9774]
[1766573008000,0.892,2934.4,2932.6,4.48076224]
[1766573008001,1.07691497,2934.4,2933.6,0.9774]
[1766573008388,1.07691497,2934.4,2933.6,4.3861322]
[1766573008798,1.07691497,2934.4,2933.8,0.5]
[1766573009092,0.89654683,2934.3,2933.6,4.3861322]
[1766573009294,0.892,2934.2,2933.6,4.3861322]
[1766573009483,0.892,2934.2,2933.4,0.9774]
[1766573009680,0.892,2934.2,2933.5,3.4088314]
[1766573010074,0.892,2934.2,2933.5,4.3862314]
[1766573010403,0.17885468,2934.1,2933.5,0.9784]
[1766573011888,0.17885468,2934.1,2933.5,0.001]
[1766573012208,0.17885468,2934.1,2933.1,4.34670152]
[1766573012501,3.40831629,2934.0,2933.2,3.40924434]
[1766573012689,0.3587171,2933.9,2933.2,3.40924434]
[1766573012889,0.892,2933.8,2933.2,3.40924434]
[1766573013486,0.892,2933.8,2933.1,4.34671315]
[1766573014076,0.892,2933.8,2933.1,0.9374]
[1766573014588,3.40866482,2933.7,2932.8,0.001]
[1766573014787,3.40866482,2933.7,2932.9,0.9374]
[1766573014989,4.30058979,2933.8,2932.9,0.9374]
[1766573016795,4.30058979,2933.8,2933.0,3.40947834]
[1766573017002,0.892,2933.8,2933.0,4.34687834]
[1766573017308,1.25483138,2933.8,2933.0,4.38097312]
[1766573017490,0.892,2933.7,2933.0,4.38097312]
[1766573017685,1.25483138,2933.8,2933.0,4.34687834]
[1766573017890,0.892,2933.7,2933.1,0.9374]
[1766573019674,4.30066771,2933.7,2933.1,0.9374]
[1766573019881,5.55552575,2933.7,2933.1,0.9374]
[1766573020714,5.55552575,2933.7,2932.9,0.9384]
[1766573021505,4.48076224,2933.6,2932.9,0.9384]
[1766573021817,4.48076224,2933.6,2932.8,0.001]
[1766573022016,8.96419346,2933.7,2932.8,0.001]
[1766573022218,1.34448324,2933.6,2932.8,0.001]
[1766573023685,6.81779444,2933.5,2932.8,0.001]
[1766573024082,6.81779444,2933.5,2932.7,0.001]
[1766573025605,0.892,2933.4,2932.7,0.001]
[1766573026507,3.40912964,2933.3,2932.7,0.001]
[1766573026700,0.77102305,2933.2,2932.7,0.001]
[1766573027105,0.77102305,2933.2,2932.6,0.9658]
[1766573027418,0.77102305,2933.2,2932.5,0.001]
[1766573027921,0.77102305,2933.2,2932.4,0.001]
[1766573028322,0.892,2933.1,2932.4,0.001]
[1766573028822,6.8187242,2933.1,2932.4,0.001]
[1766573028986,1.65197473,2933.0,2932.4,0.001]
[1766573029605,1.65197473,2933.0,2932.5,0.001]
[1766573031033,0.893,2932.9,2932.5,0.001]
[1766573034419,4.16848455,2933.0,2932.5,0.001]
[1766573034716,0.893,2932.8,2932.5,0.001]
[1766573035715,1.74009944,2932.8,2932.5,0.001]
[1766573037402,5.1498132,2932.8,2932.5,0.001]
[1766573037602,1.74009944,2932.8,2932.5,0.001]
[1766573039525,0.893,2932.8,2932.5,0.001]
[1766573040898,3.40952756,2933.0,2932.5,0.001]
[1766573041299,0.893,2932.9,2932.5,0.001]
[1766573041729,0.893,2932.8,2932.5,0.9131]
[1766573042035,0.893,2932.7,2932.5,0.9131]
[1766573047334,0.893,2933.1,2932.6,0.03409943]
[1766573047641,0.893,2933.2,2932.7,0.9121]
[1766573051035,4.30227248,2933.2,2932.7,0.9121]
[1766573052101,6.436556,2933.4,2932.7,0.9121]
[1766573052317,0.893,2933.3,2932.7,0.9121]
[1766573052826,1.6640876,2933.3,2932.5,0.001]
[1766573053134,6.81849174,2933.2,2932.5,0.001]
[1766573053947,3.40924587,2933.2,2932.5,0.001]
[1766573054151,3.41124587,2933.2,2932.5,0.001]
[1766573055443,6.82049174,2933.2,2932.5,0.001]
[1766573055631,0.84845793,2933.1,2932.5,0.001]
[1766573058121,3.40947834,2933.0,2932.5,0.001]
[1766573060246,4.25787104,2933.1,2932.5,0.001]
[1766573061524,0.893,2933.0,2932.5,0.001]
[1766573063236,4.30248235,2933.0,2932.5,0.001]
[1766573065548,0.893,2933.0,2932.5,0.001]
[1766573065710,4.30249765,2933.0,2932.5,0.001]
[1766573067340,8.56841545,2933.0,2932.4,0.001]
[1766573067642,8.56841545,2933.0,2932.3,0.001]
[1766573068556,5.1589178,2933.0,2932.3,0.001]
[1766573069519,5.1589178,2933.0,2932.3,0.9802]
[1766573069819,0.893,2932.9,2932.3,0.9802]
[1766573071642,4.30259492,2932.9,2932.3,0.9802]
[1766573073750,3.40959492,2932.9,2932.3,0.9802]
[1766573074421,5.15890221,2933.0,2932.3,0.9802]
[1766573079049,4.26590221,2933.0,2932.3,0.9802]
[1766573079226,4.26590221,2933.0,2932.4,0.9719]
[1766573079227,0.85642015,2933.0,2932.4,0.9719]
[1766573079420,0.893,2933.0,2932.4,0.9719]
[1766573079930,0.893,2933.0,2932.4,1.00600175]
[1766573083550,0.002,2933.1,2932.4,1.00600175]
[1766573083751,0.895,2933.1,2932.4,1.00600175]
[1766573085160,0.895,2933.1,2932.4,0.9719]
[1766573085355,0.77155081,2933.0,2932.4,0.9719]
[1766573086336,0.002,2933.1,2932.5,0.9111]
[1766573086563,0.002,2933.1,2932.5,0.94520059]
[1766573087161,3.41140139,2933.1,2932.5,0.03410059]
[1766573087460,4.48136889,2933.0,2932.3,0.001]
[1766573087662,9.11061515,2933.0,2932.3,0.9121]
[1766573089940,10.00361515,2933.0,2932.3,0.9121]
[1766573090266,5.52224626,2933.0,2932.3,0.9121]
[1766573093870,5.52424626,2933.0,2932.3,0.9121]
[1766573095467,8.93377535,2933.0,2932.3,0.9121]
[1766573095676,1.34171442,2932.9,2932.3,0.001]
[1766573098383,4.30452909,2933.0,2932.3,0.9121]
[1766573098694,0.895,2933.0,2932.4,0.94520175]
[1766573099771,0.002,2933.0,2932.4,0.94520175]
[1766573100077,3.41148868,2933.0,2932.4,0.94520175]
[1766573102053,3.41148868,2933.0,2932.4,0.9111]
[1766573102246,4.63140073,2933.0,2932.4,0.9111]
[1766573106153,4.63140073,2933.0,2932.3,0.001]
[1766573106896,5.52440073,2933.0,2932.3,0.9752]
[1766573109193,8.93388941,2933.0,2932.3,0.9752]
[1766573112399,5.52440073,2933.0,2932.3,0.9752]
[1766573112567,0.89358333,2932.9,2932.3,0.9752]
[1766573112769,0.002,2933.0,2932.5,0.9742]
[1766573112968,3.41148982,2933.0,2932.5,0.9742]
[1766573114106,0.002,2933.0,2932.5,0.9742]
[1766573114703,0.002,2933.2,2932.6,0.9742]
[1766573116963,0.002,2933.2,2932.7,0.9742]
[1766573117167,0.002,2933.2,2932.9,0.9742]
[1766573118602,0.002,2933.0,2932.9,0.9742]
[1766573119810,0.002,2933.0,2932.8,0.43840508]
[1766573119969,0.002,2933.0,2932.4,0.9742]
[1766573120289,0.002,2933.0,2932.5,0.91369189]
[1766573120804,4.82469348,2933.0,2932.3,0.9752]
[1766573121097,4.82469348,2933.0,2932.3,0.001]
[1766573122692,3.40959459,2932.9,2932.3,0.001]
[1766573125081,6.81918918,2932.9,2932.3,0.001]
[1766573125271,3.40959459,2932.9,2932.3,0.001]
[1766573125611,0.71624384,2932.8,2932.3,0.9752]
[1766573125974,4.6458633,2933.0,2932.3,0.9752]
[1766573126905,0.002,2933.0,2932.4,1.00830175]
[1766573127887,0.002,2933.0,2932.4,0.9742]
[1766573128575,0.002,2933.0,2932.5,0.9742]
[1766573131282,0.002,2933.0,2932.5,1.00830059]
[1766573131594,0.002,2933.0,2932.6,0.9393]
[1766573133683,0.002,2933.0,2932.3,0.9403]
[1766573133883,5.37636889,2933.0,2932.3,0.001]
[1766573134086,0.53763689,2932.9,2932.3,0.001]
[1766573134487,3.40971085,2932.8,2932.3,0.001]
[1766573135225,4.48136889,2932.4,2931.9,0.001]
[1766573135509,4.48136889,2932.4,2931.7,0.001]
[1766573135510,0.03410423,2932.3,2931.7,0.001]
[1766573135689,0.57495154,2932.3,2931.7,0.001]
[1766573135890,0.03410423,2932.3,2931.7,0.001]
[1766573136307,0.92710423,2932.3,2931.7,0.001]
[1766573136614,7.8919504,2932.1,2931.5,0.001]
[1766573136800,0.03410423,2932.0,2931.5,0.001]
[1766573137486,4.48136889,2931.7,2931.1,0.001]
[1766573137690,0.04263883,2931.6,2931.1,0.001]
[1766573138108,0.04263883,2931.6,2931.1,0.9403]
[1766573138297,0.04263592,2931.8,2931.1,0.9403]
[1766573138511,0.04263592,2931.8,2931.1,4.36904143]
[1766573138812,0.04263446,2931.9,2931.2,0.9393]
[1766573139117,3.45309728,2932.2,2931.4,0.9393]
[1766573139300,4.513,2932.1,2931.4,0.9393]
[1766573139500,0.83924274,2932.0,2931.4,0.9393]
[1766573139706,0.04263301,2932.0,2931.4,0.9393]
[1766573139905,3.41046718,2932.2,2931.4,0.9393]
[1766573139906,0.04263156,2932.1,2931.4,0.9393]
[1766573141101,3.4106412,2932.0,2931.4,0.9393]
[1766573141289,0.04263446,2931.9,2931.4,0.9393]
[1766573141500,0.04263446,2931.9,2931.4,0.9403]
[1766573142221,0.04263301,2932.0,2931.4,0.9403]
[1766573143102,0.04263156,2932.1,2931.6,0.9393]
[1766573143312,3.94727797,2932.9,2931.8,4.48136889]
[1766573143510,0.002,2933.0,2932.0,0.9393]
[1766573143511,0.02560423,2932.8,2932.0,0.9393]
[1766573143739,0.02560423,2932.8,2931.9,0.57505545]
[1766573143740,0.02560423,2932.9,2932.2,0.9712]
[1766573143920,4.50697312,2932.9,2932.2,0.9712]
[1766573144127,0.02560423,2932.9,2932.2,0.9712]
[1766573144426,0.68466449,2932.8,2932.2,0.9712]
[1766573144621,0.02560423,2932.7,2932.2,0.9712]
[1766573144922,0.02560423,2932.7,2931.7,0.894]
[1766573145224,0.02560423,2932.7,2931.8,0.9712]
[1766573145519,11.32780332,2932.7,2931.7,0.894]
[1766573145688,2.250457,2932.5,2931.7,0.9712]
[1766573145889,12.681905,2932.3,2931.5,0.9712]
[1766573146115,0.02560423,2932.2,2931.4,0.001]
[1766573146316,0.02560423,2932.2,2931.5,0.9712]
[1766573146519,0.02560423,2932.5,2931.7,0.9712]
[1766573146721,0.02560423,2932.5,2931.8,0.9712]
[1766573146911,0.02560423,2932.5,2931.8,1.00530873]
[1766573147110,0.02560423,2932.6,2931.8,1.00530873]
[1766573147297,3.41017596,2932.4,2931.4,0.895]
[1766573147515,0.02560423,2932.3,2931.5,0.03411222]
[1766573147716,2.47465,2932.2,2931.5,1.00531222]
[1766573147909,0.27562965,2932.1,2931.5,0.9712]
[1766573148104,0.02560423,2932.1,2931.5,0.9712]
[1766573148315,6.24863,2932.2,2931.4,0.001]
[1766573148519,0.02560423,2932.1,2931.4,0.001]
[1766573148834,5.97413,2932.2,2931.4,0.001]
[1766573149033,0.02560423,2932.1,2931.4,0.001]
[1766573149238,11.904714,2932.2,2931.4,0.001]
[1766573149545,3.4106412,2932.0,2931.4,0.001]
[1766573149836,0.02560423,2931.9,2931.4,0.001]
[1766573151138,0.02560423,2932.0,2931.4,0.9722]
[1766573151311,0.02560423,2932.1,2931.6,0.9712]
[1766573152210,3.43613566,2932.1,2931.6,0.9712]
[1766573152532,0.43291357,2932.0,2931.4,0.001]
[1766573152844,0.02560423,2931.9,2931.4,0.9722]
[1766573153142,0.02560423,2932.1,2931.4,0.9722]
[1766573153345,0.02560423,2932.1,2931.5,0.9712]
[1766573154045,3.43615365,2932.1,2931.5,0.9712]
[1766573154538,0.02560423,2932.1,2931.5,0.9712]
[1766573154743,3.4104213,2932.2,2931.6,0.9712]
[1766573155041,0.02560423,2932.1,2931.6,0.9712]
[1766573155344,0.02560423,2932.1,2931.5,0.03411222]
[1766573155528,0.02560423,2932.2,2931.4,0.001]
[1766573155842,3.43607065,2932.2,2931.5,0.9712]
[1766573156041,4.12091165,2932.2,2931.5,0.9712]
[1766573159748,4.12086708,2932.2,2931.6,1.00531106]
[1766573160748,0.71044523,2932.2,2931.6,1.00531106]
[1766573160954,0.02760423,2932.3,2931.7,0.9712]
[1766573161123,3.43789787,2932.3,2931.9,0.9712]
[1766573161323,0.02560423,2932.2,2931.9,0.9712]
[1766573162647,0.002,2932.3,2932.1,0.925]
[1766573162823,0.026,2932.6,2932.1,0.925]
[1766573163033,0.026,2932.6,2931.9,0.925]
[1766573163256,0.026,2932.6,2932.1,0.925]
[1766573163568,3.43595271,2932.6,2932.1,0.925]
[1766573164159,0.03,2932.5,2932.1,0.925]
[1766573165650,0.03,2932.4,2931.8,0.925]
[1766573166724,0.03,2932.4,2931.8,4.335868]
[1766573167048,0.03,2932.4,2931.8,5.11056436]
[1766573167555,0.03,2932.4,2931.9,0.925]
[1766573167722,3.40993499,2932.7,2931.9,0.925]
[1766573167923,0.03,2932.6,2931.9,0.925]
[1766573169353,7.220833,2932.8,2932.1,0.925]
[1766573169625,3.40974089,2932.8,2932.3,0.925]
[1766573169825,4.18416368,2932.8,2932.3,0.925]
[1766573170061,0.77442279,2932.8,2932.3,0.925]
[1766573170973,3.061793,2932.8,2932.3,0.925]
[1766573171467,3.43984482,2932.7,2932.3,0.925]
[1766573175277,0.03,2932.6,2932.0,0.925]
[1766573175962,0.03,2932.6,2931.8,0.894]
[1766573176348,0.03,2932.4,2931.7,0.925]
[1766573176553,0.03,2932.4,2931.5,1.82]
[1766573176739,0.03,2932.2,2931.5,1.82]
[1766573176936,0.68504759,2932.2,2931.5,1.82]
[1766573177150,0.03,2932.1,2931.5,1.82]
[1766573177665,0.03,2932.1,2931.5,0.926]
[1766573178670,6.82058452,2932.3,2931.5,0.001]
[1766573178671,0.03,2931.9,2931.5,0.001]
[1766573178842,6.854456,2932.0,2931.5,0.001]
[1766573178843,3.44087386,2931.8,2931.5,0.001]
[1766573179567,0.029,2931.7,2931.3,0.001]
[1766573180571,4.0962593,2931.9,2931.4,0.925]
[1766573180952,4.1242593,2931.9,2931.4,0.925]
[1766573181474,0.6854456,2931.9,2931.4,0.925]
[1766573181661,3.4105705,2932.1,2931.4,0.95911339]
[1766573181662,4.48962,2932.0,2931.4,0.95911339]
[1766573181973,0.028,2932.0,2931.4,0.925]
[1766573183057,0.028,2932.0,2931.5,0.03411222]
[1766573183246,3.44022505,2932.4,2931.6,0.925]
[1766573183554,0.71303598,2932.3,2931.7,0.9591099]
[1766573186285,4.12334277,2932.3,2931.7,0.9591099]
[1766573186782,0.028,2932.2,2931.7,0.9591099]
[1766573187684,0.002,2932.4,2931.8,0.925]
[1766573187863,3.44018606,2932.4,2931.9,0.95910757]
[1766573188062,0.34401861,2932.3,2931.9,0.95910757]
[1766573188671,3.75431246,2932.3,2931.9,0.95910757]
[1766573189085,3.75431246,2932.3,2931.9,0.925]
[1766573189381,3.78231246,2932.3,2931.9,0.925]
[1766573189584,0.028,2932.2,2931.6,0.926]
[1766573189886,0.028,2932.1,2931.6,0.001]
[1766573191087,0.37843125,2932.2,2931.4,1.819]
[1766573191088,0.028,2931.9,2931.4,1.819]
[1766573191393,0.028,2931.9,2931.4,0.925]
[1766573191568,0.37086412,2931.8,2931.4,0.925]
[1766573193151,0.027,2931.7,2931.3,0.03511455]
[1766573193472,0.027,2931.7,2931.3,1.02211455]
[1766573194896,0.027,2931.7,2931.4,0.001]
[1766573195198,0.34386412,2931.8,2931.4,0.988]
[1766573196590,0.37086412,2931.8,2931.4,0.988]
[1766573197192,0.37836307,2931.7,2931.4,0.001]
[1766573197398,0.026,2931.6,2931.3,0.001]
[1766573201204,0.026,2931.8,2931.3,0.988]
[1766573201371,3.41282419,2931.9,2931.3,0.988]
[1766573201372,0.34388242,2931.7,2931.3,0.988]
[1766573201576,0.026,2931.7,2931.3,0.988]
[1766573204509,3.41101116,2931.7,2931.3,0.001]
[1766573204715,0.026,2931.6,2931.3,0.001]
[1766573210304,0.028,2931.8,2931.3,0.977]
[1766573210623,0.37207734,2931.8,2931.3,0.977]
[1766573213346,0.002,2931.9,2931.5,0.976]
[1766573214314,3.41276093,2931.9,2931.5,0.976]
[1766573214516,0.002,2931.9,2931.5,0.976]
[1766573215217,0.002,2931.9,2931.6,1.01011106]
[1766573215719,0.002,2931.9,2931.6,0.976]
[1766573220193,0.002,2931.9,2931.4,0.001]
[1766573220421,0.028,2931.8,2931.4,0.977]
[1766573221431,0.028,2931.7,2931.3,0.03511455]
[1766573221603,0.028,2931.7,2931.3,0.001]
[1766573224632,3.43899651,2931.7,2931.3,0.001]
[1766573225335,4.12437492,2931.7,2931.3,0.001]
[1766573226033,0.71337841,2931.7,2931.3,0.001]
[1766573226836,0.028,2931.7,2931.3,0.001]
[1766573231748,3.43899969,2931.7,2931.3,0.001]
[1766573232129,0.028,2931.7,2931.3,0.001]
[1766573233411,3.43899445,2931.7,2931.3,0.001]
[1766573233861,0.028,2931.7,2931.3,0.001]
[1766573234044,3.41013842,2932.5,2931.5,0.9654]
[1766573234210,3.41013842,2932.5,2931.7,0.9654]
[1766573234410,3.41013842,2932.5,2931.9,0.9654]
[1766573235524,4.36839828,2932.6,2931.9,0.9654]
[1766573235720,0.002,2933.0,2932.4,0.9654]
[1766573235931,0.002,2933.0,2932.6,0.9654]
[1766573236148,0.002,2933.0,2932.7,0.99949827]